[Event "Titled Tuesday Blitz August 15 Early 2023"]
[White "Wagner, Dennis"]
[Black "Arias, Juan Cruz"]
[WhiteFideId "24650684"]
[BlackFideId "118540"]
[WhiteElo "2777"]
[BlackElo "2654"]
[Result "1-0"]
[Round "10"]
[TimeControl "180+1"]
[Date "2023.08.15"]
[WhiteClock "0:00:07"]
[BlackClock "0:00:17"]
[Board "31"]

1. d4 {[%clk 0:03:00]}  d5 {[%clk 0:02:53]} 2. c4 {[%clk 0:03:00]}  e6 {[%clk 0:02:53]} 3. Nf3 {[%clk 0:03:01]}  a6 {[%clk 0:02:52]} 4. Nbd2 {[%clk 0:02:59]}  Nf6 {[%clk 0:02:46]} 5. g3 {[%clk 0:02:59]}  dxc4 {[%clk 0:02:46]} 6. Nxc4 {[%clk 0:02:58]}  b5 {[%clk 0:02:46]} 7. Nce5 {[%clk 0:02:58]}  Bb7 {[%clk 0:02:46]} 8. Bg2 {[%clk 0:02:59]}  Bb4+ {[%clk 0:02:44]} 9. Bd2 {[%clk 0:02:58]}  Bxd2+ {[%clk 0:02:39]} 10. Qxd2 {[%clk 0:02:59]}  O-O {[%clk 0:02:39]} 11. O-O {[%clk 0:02:53]}  Nbd7 {[%clk 0:02:20]} 12. Nxd7 {[%clk 0:02:48]}  Nxd7 {[%clk 0:02:19]} 13. Rac1 {[%clk 0:02:48]}  Rc8 {[%clk 0:02:18]} 14. Rfd1 {[%clk 0:02:35]}  Qe7 {[%clk 0:02:15]} 15. Ne5 {[%clk 0:02:00]}  Bxg2 {[%clk 0:02:14]} 16. Nxd7 {[%clk 0:02:00]}  Qxd7 {[%clk 0:02:10]} 17. Kxg2 {[%clk 0:02:01]}  Qd5+ {[%clk 0:02:09]} 18. f3 {[%clk 0:01:57]}  Rfd8 {[%clk 0:02:07]} 19. Qa5 {[%clk 0:01:47]}  Qb7 {[%clk 0:01:59]} 20. Rc5 {[%clk 0:01:45]}  Rd6 {[%clk 0:01:58]} 21. Qc3 {[%clk 0:01:39]}  h6 {[%clk 0:01:57]} 22. Rc1 {[%clk 0:01:36]}  c6 {[%clk 0:01:57]} 23. h4 {[%clk 0:01:19]}  a5 {[%clk 0:01:56]} 24. e3 {[%clk 0:01:04]}  a4 {[%clk 0:01:55]} 25. a3 {[%clk 0:01:03]}  Rd5 {[%clk 0:01:51]} 26. Rxc6 {[%clk 0:00:59]}  Rxc6 {[%clk 0:01:42]} 27. Qxc6 {[%clk 0:01:00]}  Qe7 {[%clk 0:01:42]} 28. Rc5 {[%clk 0:00:52]}  Rd7 {[%clk 0:01:34]} 29. Qxb5 {[%clk 0:00:50]}  Rb7 {[%clk 0:01:34]} 30. Qxa4 {[%clk 0:00:43]}  Rxb2+ {[%clk 0:01:33]} 31. Kh3 {[%clk 0:00:43]}  Qb7 {[%clk 0:01:15]} 32. Qe8+ {[%clk 0:00:35]}  Kh7 {[%clk 0:01:14]} 33. Qc6 {[%clk 0:00:23]}  Qxc6 {[%clk 0:01:05]} 34. Rxc6 {[%clk 0:00:24]}  Rb3 {[%clk 0:01:06]} 35. a4 {[%clk 0:00:24]}  Rxe3 {[%clk 0:01:06]} 36. a5 {[%clk 0:00:23]}  Rxf3 {[%clk 0:01:02]} 37. a6 {[%clk 0:00:22]}  Ra3 {[%clk 0:01:03]} 38. Kg4 {[%clk 0:00:20]}  Kg6 {[%clk 0:01:02]} 39. Kf4 {[%clk 0:00:18]}  Kf6 {[%clk 0:01:02]} 40. d5 {[%clk 0:00:17]}  Ra4+ {[%clk 0:00:51]} 41. Ke3 {[%clk 0:00:16]}  Ke7 {[%clk 0:00:49]} 42. dxe6 {[%clk 0:00:15]}  fxe6 {[%clk 0:00:49]} 43. Rb6 {[%clk 0:00:13]}  Kf6 {[%clk 0:00:48]} 44. Kd3 {[%clk 0:00:13]}  g5 {[%clk 0:00:40]} 45. h5 {[%clk 0:00:10]}  Ra3+ {[%clk 0:00:35]} 46. Kc4 {[%clk 0:00:11]}  Rxg3 {[%clk 0:00:36]} 47. Rb3 {[%clk 0:00:10]}  Rg4+ {[%clk 0:00:32]} 48. Kb5 {[%clk 0:00:10]}  Rd4 {[%clk 0:00:25]} 49. a7 {[%clk 0:00:10]}  Rd8 {[%clk 0:00:26]} 50. Ka6 {[%clk 0:00:09]}  Ra8 {[%clk 0:00:23]} 51. Rb8 {[%clk 0:00:09]}  Rxa7+ {[%clk 0:00:23]} 52. Kxa7 {[%clk 0:00:10]}  g4 {[%clk 0:00:23]} 53. Rg8 {[%clk 0:00:10]}  Kf5 {[%clk 0:00:23]} 54. Rg6 {[%clk 0:00:10]}  e5 {[%clk 0:00:21]} 55. Rxh6 {[%clk 0:00:08]}  e4 {[%clk 0:00:21]} 56. Rh8 {[%clk 0:00:06]}  e3 {[%clk 0:00:21]} 57. Re8 {[%clk 0:00:06]}  Kf4 {[%clk 0:00:18]} 58. h6 {[%clk 0:00:06]}  g3 {[%clk 0:00:19]} 59. h7 {[%clk 0:00:06]}  g2 {[%clk 0:00:18]} 60. h8=Q {[%clk 0:00:06]}  g1=Q {[%clk 0:00:17]} 61. Qf6+ {[%clk 0:00:06]}  Kg3 {[%clk 0:00:17]} 62. Rg8+ {[%clk 0:00:07]}  Kh2 {[%clk 0:00:17]} 63. Qh4# {[%clk 0:00:07]} 1-0


[Site "https://www.chess.com"]

[Event "Titled Tuesday Blitz August 15 Early 2023"]
[White "Sipila, Vilka"]
[Black "Rustemov, Alexander"]
[WhiteFideId "505455"]
[BlackFideId "4119002"]
[WhiteElo "2640"]
[BlackElo "2772"]
[Result "0-1"]
[Round "10"]
[TimeControl "180+1"]
[Date "2023.08.15"]
[WhiteClock "0:00:23"]
[BlackClock "0:00:36"]
[Board "32"]

1. d4 {[%clk 0:03:00]}  g6 {[%clk 0:02:58]} 2. e4 {[%clk 0:02:59]}  Bg7 {[%clk 0:02:58]} 3. Nc3 {[%clk 0:02:59]}  d6 {[%clk 0:02:58]} 4. Nf3 {[%clk 0:02:56]}  a6 {[%clk 0:02:57]} 5. Bf4 {[%clk 0:02:55]}  b5 {[%clk 0:02:57]} 6. Qd2 {[%clk 0:02:52]}  Bb7 {[%clk 0:02:57]} 7. Be2 {[%clk 0:02:41]}  Nd7 {[%clk 0:02:56]} 8. e5 {[%clk 0:02:37]}  Nb6 {[%clk 0:02:49]} 9. a3 {[%clk 0:02:34]}  e6 {[%clk 0:02:47]} 10. h4 {[%clk 0:02:27]}  h6 {[%clk 0:02:46]} 11. Qe3 {[%clk 0:02:27]}  Ne7 {[%clk 0:02:44]} 12. O-O-O {[%clk 0:02:19]}  Qd7 {[%clk 0:02:42]} 13. exd6 {[%clk 0:01:57]}  cxd6 {[%clk 0:02:41]} 14. Ne4 {[%clk 0:01:54]}  Nf5 {[%clk 0:02:37]} 15. Qd3 {[%clk 0:01:54]}  Qc6 {[%clk 0:02:12]} 16. Nc3 {[%clk 0:01:41]}  O-O-O {[%clk 0:01:59]} 17. g4 {[%clk 0:01:11]}  Ne7 {[%clk 0:01:58]} 18. Bg3 {[%clk 0:01:07]}  Kb8 {[%clk 0:01:54]} 19. h5 {[%clk 0:00:54]}  g5 {[%clk 0:01:53]} 20. Rhe1 {[%clk 0:00:54]}  Rc8 {[%clk 0:01:52]} 21. Nd2 {[%clk 0:00:53]}  Ka8 {[%clk 0:01:47]} 22. Bf3 {[%clk 0:00:53]}  Qd7 {[%clk 0:01:44]} 23. Bxb7+ {[%clk 0:00:53]}  Qxb7 {[%clk 0:01:40]} 24. Bxd6 {[%clk 0:00:53]}  Rhd8 {[%clk 0:01:31]} 25. Nce4 {[%clk 0:00:45]}  Ned5 {[%clk 0:01:24]} 26. c3 {[%clk 0:00:41]}  Qc6 {[%clk 0:01:21]} 27. Qg3 {[%clk 0:00:36]}  f5 {[%clk 0:01:12]} 28. Be5 {[%clk 0:00:32]}  Bxe5 {[%clk 0:01:00]} 29. Qxe5 {[%clk 0:00:33]}  fxe4 {[%clk 0:01:00]} 30. Qxe4 {[%clk 0:00:33]}  Nf4 {[%clk 0:00:57]} 31. Nf3 {[%clk 0:00:31]}  Nc4 {[%clk 0:00:50]} 32. b3 {[%clk 0:00:29]}  Qxe4 {[%clk 0:00:47]} 33. Rxe4 {[%clk 0:00:29]}  Nd6 {[%clk 0:00:47]} 34. Re3 {[%clk 0:00:29]}  Nd5 {[%clk 0:00:46]} 35. Rxe6 {[%clk 0:00:29]}  Rxc3+ {[%clk 0:00:45]} 36. Kb2 {[%clk 0:00:30]}  Rxf3 {[%clk 0:00:45]} 37. Rd2 {[%clk 0:00:30]}  Rf6 {[%clk 0:00:42]} 38. Rde2 {[%clk 0:00:28]}  Rdf8 {[%clk 0:00:39]} 39. Rxf6 {[%clk 0:00:27]}  Rxf6 {[%clk 0:00:38]} 40. Kc2 {[%clk 0:00:27]}  Kb7 {[%clk 0:00:38]} 41. Kd2 {[%clk 0:00:25]}  Kc6 {[%clk 0:00:38]} 42. Ke1 {[%clk 0:00:25]}  Nf4 {[%clk 0:00:36]} 43. Re5 {[%clk 0:00:23]}  Re6 {[%clk 0:00:36]} 0-1


[Site "https://www.chess.com"]

[Event "Titled Tuesday Blitz August 15 Early 2023"]
[White "Srihari L R"]
[Black "Kuzhilniy, Oleksandr"]
[WhiteFideId "46617116"]
[BlackFideId "34110500"]
[WhiteElo "2766"]
[BlackElo "2627"]
[Result "1-0"]
[Round "10"]
[TimeControl "180+1"]
[Date "2023.08.15"]
[WhiteClock "0:00:58"]
[BlackClock "0:00:01"]
[Board "33"]

1. c4 {[%clk 0:03:00]}  e5 {[%clk 0:02:57]} 2. Nc3 {[%clk 0:03:00]}  Nc6 {[%clk 0:02:58]} 3. Nf3 {[%clk 0:03:00]}  Nf6 {[%clk 0:02:58]} 4. e3 {[%clk 0:02:59]}  Bb4 {[%clk 0:02:55]} 5. Qc2 {[%clk 0:02:58]}  O-O {[%clk 0:02:55]} 6. Nd5 {[%clk 0:02:55]}  Be7 {[%clk 0:02:52]} 7. a3 {[%clk 0:02:50]}  a5 {[%clk 0:02:50]} 8. Bd3 {[%clk 0:02:48]}  h6 {[%clk 0:02:47]} 9. b3 {[%clk 0:02:30]}  Re8 {[%clk 0:02:45]} 10. Bb2 {[%clk 0:02:28]}  Bf8 {[%clk 0:02:22]} 11. Nxf6+ {[%clk 0:02:22]}  Qxf6 {[%clk 0:02:21]} 12. Be4 {[%clk 0:02:21]}  d6 {[%clk 0:02:18]} 13. Rg1 {[%clk 0:02:14]}  Bg4 {[%clk 0:01:53]} 14. h3 {[%clk 0:02:13]}  Bh5 {[%clk 0:01:53]} 15. g4 {[%clk 0:02:13]}  Bg6 {[%clk 0:01:54]} 16. Ke2 {[%clk 0:02:11]}  Rad8 {[%clk 0:01:17]} 17. g5 {[%clk 0:02:10]}  hxg5 {[%clk 0:01:17]} 18. Rxg5 {[%clk 0:02:09]}  Ne7 {[%clk 0:00:54]} 19. Rag1 {[%clk 0:02:03]}  c6 {[%clk 0:00:52]} 20. h4 {[%clk 0:01:58]}  Bxe4 {[%clk 0:00:48]} 21. Qxe4 {[%clk 0:01:57]}  Qe6 {[%clk 0:00:45]} 22. h5 {[%clk 0:01:53]}  d5 {[%clk 0:00:42]} 23. Qxe5 {[%clk 0:01:49]}  Qxe5 {[%clk 0:00:40]} 24. Bxe5 {[%clk 0:01:49]}  g6 {[%clk 0:00:34]} 25. Rh1 {[%clk 0:01:39]}  dxc4 {[%clk 0:00:27]} 26. hxg6 {[%clk 0:01:33]}  fxg6 {[%clk 0:00:27]} 27. bxc4 {[%clk 0:01:33]}  Bg7 {[%clk 0:00:26]} 28. Bxg7 {[%clk 0:01:31]}  Kxg7 {[%clk 0:00:26]} 29. Rxa5 {[%clk 0:01:32]}  Ra8 {[%clk 0:00:26]} 30. Rxa8 {[%clk 0:01:30]}  Rxa8 {[%clk 0:00:27]} 31. Rb1 {[%clk 0:01:31]}  Ra7 {[%clk 0:00:25]} 32. d4 {[%clk 0:01:29]}  Nf5 {[%clk 0:00:23]} 33. c5 {[%clk 0:01:23]}  Kf6 {[%clk 0:00:22]} 34. Ne5 {[%clk 0:01:23]}  Ne7 {[%clk 0:00:18]} 35. Rb3 {[%clk 0:01:22]}  Kf5 {[%clk 0:00:17]} 36. f3 {[%clk 0:01:16]}  g5 {[%clk 0:00:17]} 37. e4+ {[%clk 0:01:16]}  Ke6 {[%clk 0:00:17]} 38. Ke3 {[%clk 0:01:14]}  Ng8 {[%clk 0:00:17]} 39. Nc4 {[%clk 0:01:14]}  Nf6 {[%clk 0:00:16]} 40. Nd6 {[%clk 0:01:13]}  Ra8 {[%clk 0:00:13]} 41. Nxb7 {[%clk 0:01:12]}  Rh8 {[%clk 0:00:13]} 42. Rb6 {[%clk 0:01:10]}  Kd7 {[%clk 0:00:12]} 43. d5 {[%clk 0:01:09]}  Rh3 {[%clk 0:00:10]} 44. Rxc6 {[%clk 0:01:06]}  Ng4+ {[%clk 0:00:10]} 45. Kd4 {[%clk 0:01:03]}  Rxf3 {[%clk 0:00:10]} 46. Rg6 {[%clk 0:01:01]}  Ne3 {[%clk 0:00:05]} 47. Rg7+ {[%clk 0:01:01]}  Kc8 {[%clk 0:00:01]} 48. c6 {[%clk 0:00:58]} 1-0


[Site "https://www.chess.com"]

[Event "Titled Tuesday Blitz August 15 Early 2023"]
[White "Lana Rodriguez, David"]
[Black "Hambleton, Aman"]
[WhiteFideId "2270803"]
[BlackFideId "2606577"]
[WhiteElo "2621"]
[BlackElo "2756"]
[Result "0-1"]
[Round "10"]
[TimeControl "180+1"]
[Date "2023.08.15"]
[WhiteClock "0:00:14"]
[BlackClock "0:00:05"]
[Board "34"]

1. e4 {[%clk 0:03:00]}  c5 {[%clk 0:02:59]} 2. Nf3 {[%clk 0:03:01]}  e6 {[%clk 0:02:59]} 3. b4 {[%clk 0:03:00]}  cxb4 {[%clk 0:02:53]} 4. d4 {[%clk 0:03:00]}  d5 {[%clk 0:02:53]} 5. e5 {[%clk 0:03:01]}  Bd7 {[%clk 0:02:30]} 6. a3 {[%clk 0:03:00]}  bxa3 {[%clk 0:02:17]} 7. Bxa3 {[%clk 0:03:01]}  Bxa3 {[%clk 0:02:15]} 8. Rxa3 {[%clk 0:03:02]}  Ne7 {[%clk 0:02:08]} 9. Bd3 {[%clk 0:03:02]}  h6 {[%clk 0:01:56]} 10. O-O {[%clk 0:03:02]}  Nbc6 {[%clk 0:01:56]} 11. c3 {[%clk 0:02:57]}  Na5 {[%clk 0:01:53]} 12. Nbd2 {[%clk 0:02:57]}  b6 {[%clk 0:01:18]} 13. Nh4 {[%clk 0:02:51]}  g5 {[%clk 0:00:43]} 14. Nhf3 {[%clk 0:02:47]}  Rc8 {[%clk 0:00:43]} 15. Ne1 {[%clk 0:02:46]}  Nf5 {[%clk 0:00:39]} 16. Qh5 {[%clk 0:02:40]}  Ng7 {[%clk 0:00:35]} 17. Qh3 {[%clk 0:02:36]}  f5 {[%clk 0:00:31]} 18. exf6 {[%clk 0:02:31]}  Qxf6 {[%clk 0:00:32]} 19. Qg3 {[%clk 0:02:24]}  Qf4 {[%clk 0:00:07]} 20. Qxf4 {[%clk 0:02:17]}  gxf4 {[%clk 0:00:08]} 21. Nef3 {[%clk 0:02:12]}  Ke7 {[%clk 0:00:07]} 22. Ne5 {[%clk 0:02:13]}  Be8 {[%clk 0:00:07]} 23. Re1 {[%clk 0:02:12]}  Rg8 {[%clk 0:00:03]} 24. Bh7 {[%clk 0:02:07]}  Rf8 {[%clk 0:00:03]} 25. Bg6 {[%clk 0:02:08]}  Kd6 {[%clk 0:00:02]} 26. Bxe8 {[%clk 0:01:59]}  Rcxe8 {[%clk 0:00:01]} 27. Rb1 {[%clk 0:01:55]}  Rc8 {[%clk 0:00:02]} 28. Kf1 {[%clk 0:01:53]}  Rc7 {[%clk 0:00:02]} 29. Ke2 {[%clk 0:01:53]}  Nf5 {[%clk 0:00:02]} 30. Kd3 {[%clk 0:01:53]}  Rfc8 {[%clk 0:00:02]} 31. Rc1 {[%clk 0:01:39]}  Rg7 {[%clk 0:00:02]} 32. g3 {[%clk 0:01:39]}  fxg3 {[%clk 0:00:02]} 33. hxg3 {[%clk 0:01:40]}  h5 {[%clk 0:00:02]} 34. Rh1 {[%clk 0:01:39]}  Rh7 {[%clk 0:00:02]} 35. g4 {[%clk 0:01:36]}  Ng7 {[%clk 0:00:02]} 36. g5 {[%clk 0:01:35]}  Nf5 {[%clk 0:00:02]} 37. g6 {[%clk 0:01:35]}  Rg7 {[%clk 0:00:02]} 38. Rxh5 {[%clk 0:01:26]}  Ne7 {[%clk 0:00:03]} 39. Rh7 {[%clk 0:01:18]}  Rcg8 {[%clk 0:00:03]} 40. Rxg7 {[%clk 0:01:16]}  Rxg7 {[%clk 0:00:04]} 41. c4 {[%clk 0:01:10]}  Nxg6 {[%clk 0:00:04]} 42. c5+ {[%clk 0:01:08]}  Kc7 {[%clk 0:00:04]} 43. cxb6+ {[%clk 0:01:07]}  axb6 {[%clk 0:00:04]} 44. Rc3+ {[%clk 0:01:06]}  Kb7 {[%clk 0:00:05]} 45. Ndf3 {[%clk 0:01:06]}  Nxe5+ {[%clk 0:00:03]} 46. Nxe5 {[%clk 0:01:07]}  Rc7 {[%clk 0:00:04]} 47. Ra3 {[%clk 0:01:02]}  Nc4 {[%clk 0:00:04]} 48. Ra1 {[%clk 0:00:54]}  Nxe5+ {[%clk 0:00:04]} 49. dxe5 {[%clk 0:00:54]}  Rf7 {[%clk 0:00:04]} 50. Ke3 {[%clk 0:00:53]}  Rc7 {[%clk 0:00:02]} 51. Rh1 {[%clk 0:00:49]}  Rc4 {[%clk 0:00:01]} 52. f3 {[%clk 0:00:48]}  b5 {[%clk 0:00:01]} 53. Rh7+ {[%clk 0:00:47]}  Kb6 {[%clk 0:00:02]} 54. Re7 {[%clk 0:00:47]}  Rc6 {[%clk 0:00:02]} 55. f4 {[%clk 0:00:47]}  b4 {[%clk 0:00:02]} 56. Re8 {[%clk 0:00:48]}  Kb7 {[%clk 0:00:02]} 57. Rh8 {[%clk 0:00:46]}  b3 {[%clk 0:00:02]} 58. Rh1 {[%clk 0:00:45]}  Rc3+ {[%clk 0:00:01]} 59. Kd2 {[%clk 0:00:34]}  Rc4 {[%clk 0:00:01]} 60. Rb1 {[%clk 0:00:29]}  Rxf4 {[%clk 0:00:01]} 61. Rxb3+ {[%clk 0:00:30]}  Kc6 {[%clk 0:00:02]} 62. Ra3 {[%clk 0:00:27]}  Re4 {[%clk 0:00:02]} 63. Ra6+ {[%clk 0:00:28]}  Kd7 {[%clk 0:00:03]} 64. Ra7+ {[%clk 0:00:27]}  Ke8 {[%clk 0:00:03]} 65. Kd3 {[%clk 0:00:26]}  Kd8 {[%clk 0:00:03]} 66. Rh7 {[%clk 0:00:24]}  Ke8 {[%clk 0:00:03]} 67. Ra7 {[%clk 0:00:23]}  Kf8 {[%clk 0:00:02]} 68. Rb7 {[%clk 0:00:23]}  Rxe5 {[%clk 0:00:03]} 69. Kd4 {[%clk 0:00:24]}  Rf5 {[%clk 0:00:02]} 70. Kc5 {[%clk 0:00:24]}  Rf7 {[%clk 0:00:03]} 71. Rb1 {[%clk 0:00:21]}  Ke7 {[%clk 0:00:02]} 72. Kd4 {[%clk 0:00:21]}  Rf4+ {[%clk 0:00:02]} 73. Kc5 {[%clk 0:00:20]}  Rc4+ {[%clk 0:00:03]} 74. Kb5 {[%clk 0:00:18]}  Rc8 {[%clk 0:00:04]} 75. Rh1 {[%clk 0:00:17]}  Kd6 {[%clk 0:00:04]} 76. Rh7 {[%clk 0:00:16]}  Rb8+ {[%clk 0:00:05]} 77. Ka4 {[%clk 0:00:14]}  d4 {[%clk 0:00:05]} 0-1


[Site "https://www.chess.com"]

[Event "Titled Tuesday Blitz August 15 Early 2023"]
[White "Vlassov, Nikolai"]
[Black "Shcherbin, Matvei"]
[WhiteFideId "4103360"]
[BlackFideId "24125164"]
[WhiteElo "2621"]
[BlackElo "2747"]
[Result "0-1"]
[Round "10"]
[TimeControl "180+1"]
[Date "2023.08.15"]
[WhiteClock "0:00:48"]
[BlackClock "0:00:15"]
[Board "35"]

1. e4 {[%clk 0:03:00]}  c5 {[%clk 0:02:58]} 2. c3 {[%clk 0:03:00]}  Nf6 {[%clk 0:02:50]} 3. e5 {[%clk 0:03:00]}  Nd5 {[%clk 0:02:49]} 4. d4 {[%clk 0:03:01]}  cxd4 {[%clk 0:02:48]} 5. cxd4 {[%clk 0:03:02]}  Nc6 {[%clk 0:02:45]} 6. Nc3 {[%clk 0:03:02]}  Nxc3 {[%clk 0:02:39]} 7. bxc3 {[%clk 0:03:03]}  d6 {[%clk 0:02:40]} 8. f4 {[%clk 0:03:03]}  g6 {[%clk 0:02:38]} 9. Bd3 {[%clk 0:03:01]}  Bg7 {[%clk 0:02:37]} 10. h4 {[%clk 0:02:59]}  dxe5 {[%clk 0:02:24]} 11. fxe5 {[%clk 0:02:58]}  h5 {[%clk 0:02:16]} 12. Nf3 {[%clk 0:02:53]}  Bg4 {[%clk 0:02:17]} 13. O-O {[%clk 0:02:52]}  O-O {[%clk 0:02:13]} 14. Be3 {[%clk 0:02:46]}  Rc8 {[%clk 0:02:11]} 15. Qe1 {[%clk 0:02:45]}  Bxf3 {[%clk 0:02:08]} 16. Rxf3 {[%clk 0:02:38]}  Nxe5 {[%clk 0:02:08]} 17. dxe5 {[%clk 0:02:38]}  Qxd3 {[%clk 0:02:07]} 18. Bxa7 {[%clk 0:02:38]}  Qd5 {[%clk 0:01:58]} 19. Bd4 {[%clk 0:02:36]}  b5 {[%clk 0:01:42]} 20. Rb1 {[%clk 0:02:31]}  Qxa2 {[%clk 0:01:29]} 21. Rxb5 {[%clk 0:02:30]}  Rb8 {[%clk 0:01:29]} 22. Rxb8 {[%clk 0:02:23]}  Rxb8 {[%clk 0:01:30]} 23. Qe4 {[%clk 0:02:10]}  Qb1+ {[%clk 0:01:21]} 24. Qxb1 {[%clk 0:02:08]}  Rxb1+ {[%clk 0:01:22]} 25. Rf1 {[%clk 0:02:07]}  Rb5 {[%clk 0:01:09]} 26. Re1 {[%clk 0:02:04]}  e6 {[%clk 0:01:08]} 27. Kf2 {[%clk 0:02:03]}  Bf8 {[%clk 0:01:06]} 28. Ke3 {[%clk 0:02:03]}  Be7 {[%clk 0:01:06]} 29. g3 {[%clk 0:02:02]}  Kf8 {[%clk 0:01:02]} 30. Ra1 {[%clk 0:02:00]}  Rb7 {[%clk 0:00:56]} 31. Ra8+ {[%clk 0:01:59]}  Kg7 {[%clk 0:00:56]} 32. Ra7 {[%clk 0:01:56]}  Rxa7 {[%clk 0:00:54]} 33. Bxa7 {[%clk 0:01:56]}  Kf8 {[%clk 0:00:54]} 34. Kd4 {[%clk 0:01:47]}  Ke8 {[%clk 0:00:55]} 35. Bc5 {[%clk 0:01:46]}  Bd8 {[%clk 0:00:46]} 36. Bd6 {[%clk 0:01:44]}  Kd7 {[%clk 0:00:45]} 37. Kc5 {[%clk 0:01:44]}  Ba5 {[%clk 0:00:41]} 38. c4 {[%clk 0:01:40]}  Be1 {[%clk 0:00:40]} 39. Kb6 {[%clk 0:01:26]}  Kc8 {[%clk 0:00:39]} 40. Be7 {[%clk 0:01:22]}  Bxg3 {[%clk 0:00:38]} 41. Bf6 {[%clk 0:01:22]}  g5 {[%clk 0:00:34]} 42. Bxg5 {[%clk 0:01:14]}  Bxe5 {[%clk 0:00:34]} 43. Kc6 {[%clk 0:01:10]}  Bg3 {[%clk 0:00:30]} 44. c5 {[%clk 0:01:09]}  Be5 {[%clk 0:00:28]} 45. Be7 {[%clk 0:01:03]}  f5 {[%clk 0:00:25]} 46. Bg5 {[%clk 0:00:59]}  f4 {[%clk 0:00:24]} 47. Bh6 {[%clk 0:00:58]}  f3 {[%clk 0:00:24]} 48. Be3 {[%clk 0:00:58]}  Bg3 {[%clk 0:00:24]} 49. Bg1 {[%clk 0:00:52]}  Bxh4 {[%clk 0:00:13]} 50. Kd6 {[%clk 0:00:52]}  f2 {[%clk 0:00:14]} 51. Bxf2 {[%clk 0:00:52]}  Bxf2 {[%clk 0:00:14]} 52. Kxe6 {[%clk 0:00:48]}  h4 {[%clk 0:00:15]} 0-1


[Site "https://www.chess.com"]

[Event "Titled Tuesday Blitz August 15 Early 2023"]
[White "Stribuk, Artiom"]
[Black "Lehtosaari, Mauri"]
[WhiteFideId "13515659"]
[BlackFideId "501999"]
[WhiteElo "2745"]
[BlackElo "2537"]
[Result "1-0"]
[Round "10"]
[TimeControl "180+1"]
[Date "2023.08.15"]
[WhiteClock "0:00:18"]
[BlackClock "0:00:00"]
[Board "36"]

1. d4 {[%clk 0:03:00]}  d5 {[%clk 0:02:56]} 2. c4 {[%clk 0:02:57]}  c6 {[%clk 0:02:55]} 3. Nc3 {[%clk 0:02:57]}  Nf6 {[%clk 0:02:54]} 4. e3 {[%clk 0:02:57]}  a6 {[%clk 0:02:47]} 5. Nf3 {[%clk 0:02:55]}  b5 {[%clk 0:02:47]} 6. b3 {[%clk 0:02:55]}  Bg4 {[%clk 0:02:46]} 7. a4 {[%clk 0:02:34]}  bxc4 {[%clk 0:02:05]} 8. bxc4 {[%clk 0:02:35]}  e6 {[%clk 0:02:06]} 9. c5 {[%clk 0:02:17]}  Ne4 {[%clk 0:01:46]} 10. Qc2 {[%clk 0:01:44]}  Nxc3 {[%clk 0:01:24]} 11. Qxc3 {[%clk 0:01:43]}  Nd7 {[%clk 0:01:24]} 12. Be2 {[%clk 0:01:41]}  Be7 {[%clk 0:01:24]} 13. h3 {[%clk 0:01:42]}  Bh5 {[%clk 0:01:23]} 14. O-O {[%clk 0:01:42]}  O-O {[%clk 0:01:23]} 15. a5 {[%clk 0:01:38]}  Bf6 {[%clk 0:01:17]} 16. Bb2 {[%clk 0:01:27]}  Bxf3 {[%clk 0:01:08]} 17. Bxf3 {[%clk 0:01:27]}  e5 {[%clk 0:01:09]} 18. Qc2 {[%clk 0:01:15]}  exd4 {[%clk 0:01:07]} 19. Bxd4 {[%clk 0:01:12]}  Bxd4 {[%clk 0:01:03]} 20. exd4 {[%clk 0:01:13]}  Re8 {[%clk 0:00:45]} 21. Qd3 {[%clk 0:01:10]}  Nf8 {[%clk 0:00:43]} 22. Rfb1 {[%clk 0:01:08]}  Ne6 {[%clk 0:00:38]} 23. Rb6 {[%clk 0:01:07]}  Qf6 {[%clk 0:00:33]} 24. Rd1 {[%clk 0:01:07]}  Nf4 {[%clk 0:00:31]} 25. Qd2 {[%clk 0:00:59]}  Nxh3+ {[%clk 0:00:29]} 26. Kf1 {[%clk 0:00:50]}  Ng5 {[%clk 0:00:26]} 27. Be2 {[%clk 0:00:47]}  Ne4 {[%clk 0:00:17]} 28. Qe3 {[%clk 0:00:41]}  Nxc5 {[%clk 0:00:14]} 29. Qf3 {[%clk 0:00:34]}  Qxf3 {[%clk 0:00:10]} 30. Bxf3 {[%clk 0:00:26]}  Ne6 {[%clk 0:00:05]} 31. Rxc6 {[%clk 0:00:26]}  Red8 {[%clk 0:00:06]} 32. Be2 {[%clk 0:00:26]}  Ra7 {[%clk 0:00:03]} 33. Bg4 {[%clk 0:00:19]}  Re8 {[%clk 0:00:01]} 34. Re1 {[%clk 0:00:17]}  g6 {[%clk 0:00:01]} 35. Bxe6 {[%clk 0:00:17]}  fxe6 {[%clk 0:00:02]} 36. Rexe6 {[%clk 0:00:17]}  Rxe6 {[%clk 0:00:00]} 37. Rxe6 {[%clk 0:00:18]} 1-0


[Site "https://www.chess.com"]